bitfinex/quotes_BTCUSD_20240826
["timestamp","ask_amount","ask_price","bid_price","bid_amount"]
[1724701836174,0.16017801,63482.0,63478.0,0.315068]
[1724701836513,0.16017801,63482.0,63480.0,0.157528]
[1724701836646,0.16017801,63482.0,63481.0,0.472581]
[1724701837872,0.15617801,63482.0,63481.0,0.158527]
[1724701838270,0.16017801,63482.0,63481.0,0.158527]
[1724701838482,0.16017801,63482.0,63481.0,0.001]
[1724701838682,0.15617801,63482.0,63481.0,0.001]
[1724701839352,0.16017801,63482.0,63481.0,0.001]
[1724701839686,0.63275101,63482.0,63481.0,0.001]
[1724701840289,0.82358451,63482.0,63481.0,0.001]
[1724701840494,1.42934901,63482.0,63481.0,0.001]
[1724701841337,0.553941,63473.0,63472.0,0.4692]
[1724701841670,1.40250701,63473.0,63472.0,0.4692]
[1724701841988,1.08741301,63473.0,63472.0,0.4692]
[1724701842844,1.08741301,63473.0,63461.0,0.315151]
[1724701842845,0.0798,63472.0,63461.0,0.4692]
[1724701843051,0.157569,63464.0,63462.0,0.00315107]
[1724701843248,0.157569,63464.0,63460.0,0.157577]
[1724701843249,0.15617801,63463.0,63460.0,0.157577]
[1724701844094,0.15617801,63463.0,63459.0,0.31516]
[1724701844294,0.15617801,63463.0,63462.0,0.157574]
[1724701844713,0.15617801,63463.0,63462.0,0.472723]
[1724701845331,0.15617801,63463.0,63462.0,0.157574]
[1724701845985,0.15617801,63463.0,63462.0,0.472723]
[1724701846446,0.157556,63470.0,63467.0,0.157561]
[1724701846642,0.15617801,63469.0,63467.0,0.157561]
[1724701846874,0.15617801,63469.0,63462.0,0.0009064]
[1724701846875,0.15617801,63469.0,63468.0,0.157559]
[1724701847095,0.15617801,63469.0,63466.0,0.157562]
[1724701847298,0.15617801,63469.0,63466.0,0.315128]
[1724701847446,0.15617801,63469.0,63467.0,0.315124]
[1724701847646,0.15617801,63469.0,63468.0,0.157559]
[1724701847831,0.16317801,63469.0,63468.0,0.157559]
[1724701848253,0.15617801,63469.0,63468.0,0.472678]
[1724701848467,0.16317801,63469.0,63468.0,0.472678]
[1724701848864,0.15617801,63469.0,63468.0,0.472678]
[1724701849062,0.007,63469.0,63468.0,0.787797]
[1724701849424,0.01,63469.0,63468.0,0.787797]
[1724701850046,0.007,63469.0,63468.0,0.787797]
[1724701850274,0.007,63469.0,63468.0,0.472678]
[1724701850275,0.01,63469.0,63468.0,0.472678]
[1724701850478,0.16617801,63469.0,63467.0,0.157561]
[1724701850686,0.472716,63463.0,63462.0,0.0009064]
[1724701850888,1.01963801,63463.0,63462.0,0.0009064]
[1724701851294,0.15617801,63463.0,63462.0,0.0009064]
[1724701851905,0.31375001,63463.0,63462.0,0.0009064]
[1724701852107,0.0756,63467.0,63465.0,0.157565]
[1724701852336,0.15617801,63466.0,63465.0,0.157565]
[1724701852704,0.15617801,63466.0,63463.0,0.15757]
[1724701852905,0.15617801,63466.0,63462.0,0.0009064]
[1724701853104,0.15617801,63466.0,63463.0,0.157571]
[1724701853430,0.15617801,63466.0,63462.0,0.0009064]
[1724701853654,0.31374401,63466.0,63462.0,0.0009064]
[1724701853860,0.233172,63463.0,63462.0,0.0009064]
[1724701854077,0.70449401,63463.0,63462.0,0.0009064]
[1724701854651,1.01963801,63463.0,63462.0,0.0009064]
[1724701854861,1.08613801,63463.0,63462.0,0.0009064]
[1724701855987,1.09313801,63463.0,63462.0,0.0009064]
[1724701856943,1.09713801,63463.0,63462.0,0.0009064]
[1724701857969,0.78199401,63463.0,63462.0,0.0009064]
[1724701858169,0.78199401,63463.0,63462.0,0.1584804]
[1724701858170,0.16717801,63463.0,63462.0,0.1584804]
[1724701858571,0.011,63463.0,63462.0,0.5515294]
[1724701859129,0.011,63463.0,63462.0,0.8666784]
[1724701860482,0.01081037,63463.0,63462.0,0.8666784]
[1724701860685,0.01081037,63463.0,63462.0,1.1818274]
[1724701861172,0.01081037,63463.0,63462.0,1.3485274]
[1724701861372,0.01081037,63463.0,63462.0,1.3475274]
[1724701861659,0.004,63463.0,63462.0,1.3475274]
[1724701862092,0.005,63463.0,63462.0,1.3475274]
[1724701862292,0.001,63463.0,63462.0,1.3475274]
[1724701862684,0.002,63463.0,63462.0,1.3475274]
[1724701863292,0.003,63463.0,63462.0,1.3475274]
[1724701864525,0.003,63463.0,63462.0,1.6626764]
[1724701864730,0.003,63463.0,63462.0,1.93836138]
[1724701864931,0.003,63463.0,63462.0,3.34953939]
[1724701865295,0.003,63463.0,63462.0,3.66468839]
[1724701865509,0.000824,63468.0,63467.0,1.563358]
[1724701865707,0.000824,63468.0,63467.0,1.81953601]
[1724701865952,0.000824,63468.0,63467.0,2.13466001]
[1724701866736,0.000824,63468.0,63467.0,2.44978401]
[1724701867171,0.001824,63468.0,63467.0,2.44978401]
[1724701868373,0.001824,63468.0,63467.0,1.82753601]
[1724701868549,0.001824,63468.0,63467.0,1.83342288]
[1724701868550,0.002824,63468.0,63467.0,1.83342288]
[1724701868794,0.000824,63468.0,63467.0,1.82542288]
[1724701868997,0.000824,63468.0,63467.0,1.83342288]
[1724701869196,0.002824,63468.0,63467.0,1.84742288]
[1724701869398,0.002824,63468.0,63467.0,1.83942288]
[1724701869622,0.003824,63468.0,63467.0,2.16254688]
[1724701869966,0.000824,63468.0,63467.0,3.39554688]
[1724701870079,0.000824,63468.0,63467.0,3.40954688]
[1724701870080,0.001824,63468.0,63467.0,3.40954688]
[1724701870484,0.000824,63468.0,63467.0,3.39554688]
[1724701870691,0.000824,63468.0,63467.0,3.40954688]
[1724701871034,0.001824,63468.0,63467.0,3.40954688]
[1724701871792,0.002824,63468.0,63467.0,3.10242288]
[1724701872269,0.002824,63468.0,63467.0,3.40954688]
[1724701872448,0.003824,63468.0,63467.0,3.41754688]
[1724701872661,0.003824,63468.0,63467.0,3.10242288]
[1724701873052,0.003824,63468.0,63467.0,2.939358]
[1724701873233,0.003824,63468.0,63467.0,2.624234]
[1724701873639,0.000824,63468.0,63467.0,2.602234]
[1724701874082,0.001824,63468.0,63467.0,2.611234]
[1724701875130,0.002824,63468.0,63467.0,2.618234]
[1724701875358,0.002824,63468.0,63467.0,2.611234]
[1724701875569,0.001824,63468.0,63467.0,2.602234]
[1724701875774,0.002824,63468.0,63467.0,1.354234]
[1724701875976,0.003824,63468.0,63467.0,1.216934]
[1724701876955,0.003824,63468.0,63467.0,0.586686]
[1724701877112,0.003824,63468.0,63467.0,0.486686]
[1724701877319,0.003824,63468.0,63467.0,0.80181]
[1724701877537,0.003824,63468.0,63467.0,1.116934]
[1724701878179,0.001824,63468.0,63467.0,1.109934]
[1724701878453,0.002824,63468.0,63467.0,1.215934]
[1724701878632,0.001824,63468.0,63467.0,1.202934]
[1724701878988,0.002824,63468.0,63467.0,1.208934]
[1724701879190,0.002824,63468.0,63467.0,1.287434]
[1724701879822,0.003824,63468.0,63467.0,1.293434]
[1724701879996,0.002824,63468.0,63467.0,1.293434]
[1724701880200,0.20750015,63485.0,63467.0,1.293434]
[1724701880201,0.04998315,63485.0,63483.0,1.102654]
[1724701880406,0.04998315,63485.0,63483.0,0.78761]
[1724701880669,0.0783,63493.0,63483.0,0.78761]
[1724701880874,0.235797,63493.0,63483.0,0.472566]
[1724701881070,0.23400201,63484.0,63483.0,0.472566]
[1724701881681,0.23400201,63484.0,63483.0,0.78761]
[1724701882090,0.23400201,63484.0,63481.0,0.157525]
[1724701882091,0.0608,63483.0,63481.0,0.157525]
[1724701882306,0.077,63481.0,63463.0,0.0009064]
[1724701882509,0.077,63478.0,63473.0,0.157545]
[1724701882733,0.31371601,63477.0,63473.0,0.157546]
[1724701882940,0.15617801,63477.0,63474.0,0.157544]
[1724701883143,0.15617801,63477.0,63463.0,0.0009064]
[1724701883348,0.15617801,63477.0,63476.0,0.157539]
[1724701884124,0.15617801,63477.0,63463.0,0.0009064]
[1724701884125,0.0768,63476.0,63463.0,0.0009064]
[1724701884323,0.15617801,63475.0,63472.0,0.157548]
[1724701884522,0.15617801,63475.0,63473.0,0.157546]
[1724701885223,0.15617801,63475.0,63466.0,0.315126]
[1724701885424,0.15617801,63475.0,63471.0,0.157551]
[1724701885873,0.079,63472.0,63463.0,0.0009064]
[1724701886073,0.079,63470.0,63467.0,0.157561]
[1724701886277,0.15617801,63471.0,63466.0,0.157564]
[1724701886278,0.15617801,63469.0,63466.0,0.157564]
[1724701886478,0.15617801,63469.0,63463.0,0.0009064]
[1724701886479,0.079,63468.0,63463.0,0.0009064]
[1724701886809,0.0615,63465.0,63463.0,0.0009064]
[1724701886931,0.315097,63473.0,63463.0,0.0009064]
[1724701886932,0.73088601,63464.0,63463.0,0.0009064]
[1724701887132,1.10752501,63464.0,63463.0,0.0009064]
[1724701887436,1.52266401,63464.0,63463.0,0.0009064]
[1724701887685,0.00062166,63460.0,63450.0,0.0009064]
[1724701887890,0.609504,63451.0,63450.0,0.0009064]
[1724701888092,1.08088501,63451.0,63450.0,0.0009064]
[1724701888306,0.76568201,63451.0,63450.0,0.0009064]
[1724701888503,0.78868201,63451.0,63450.0,0.0009064]
[1724701889360,0.79668201,63451.0,63450.0,0.0019064]
[1724701889560,0.30087801,63451.0,63450.0,0.0019064]
[1724701889763,0.30087801,63451.0,63450.0,0.0029064]
[1724701889764,0.3305781,63451.0,63450.0,0.0029064]
[1724701890985,0.30587801,63451.0,63450.0,0.0029064]
[1724701891321,1.40908801,63451.0,63450.0,0.0029064]
[1724701891550,1.43208801,63451.0,63450.0,0.0029064]
[1724701891933,1.11688501,63451.0,63450.0,0.0029064]
[1724701892122,1.10388501,63451.0,63450.0,0.0009064]
[1724701892467,1.11488501,63451.0,63450.0,0.0029064]
[1724701892692,1.15358709,63451.0,63450.0,0.0029064]
[1724701892899,1.15358709,63451.0,63450.0,0.0009064]
[1724701892900,1.14258709,63451.0,63450.0,0.0009064]
[1724701893095,1.15658709,63451.0,63450.0,0.0019064]
[1724701893323,1.16758709,63451.0,63450.0,0.0029064]
[1724701894421,1.48279009,63451.0,63450.0,0.0029064]
[1724701896241,1.82649756,63451.0,63450.0,0.0029064]
[1724701896649,2.14170056,63451.0,63450.0,0.0029064]
[1724701896852,2.3994539,63451.0,63450.0,0.0029064]
[1724701897479,2.24332222,63451.0,63450.0,0.0029064]
[1724701897671,2.24332222,63451.0,63450.0,0.0019064]
[1724701897899,2.23232222,63451.0,63450.0,0.0019064]
[1724701898100,2.24632222,63451.0,63450.0,0.0019064]
[1724701898561,2.20432222,63451.0,63450.0,0.0009064]
[1724701898739,2.21832222,63451.0,63450.0,0.0009064]
[1724701899096,1.21958709,63451.0,63450.0,0.0009064]
[1724701899272,1.13358709,63451.0,63450.0,0.0009064]
[1724701900003,1.44879009,63451.0,63450.0,0.0009064]
[1724701900206,1.13358709,63451.0,63450.0,0.0009064]
[1724701900438,0.34558009,63451.0,63450.0,0.0009064]
[1724701900814,0.50318109,63451.0,63450.0,0.0009064]
[1724701901016,0.19488009,63451.0,63450.0,0.1585104]
[1724701901193,0.20888009,63451.0,63450.0,0.4737184]
[1724701901400,0.19488009,63451.0,63450.0,0.1585104]
[1724701901607,0.15617801,63451.0,63450.0,0.4737184]
[1724701901811,0.16117801,63451.0,63450.0,0.4737184]
[1724701902027,0.15617801,63451.0,63450.0,0.4737184]
[1724701902446,0.15617801,63451.0,63450.0,0.7889264]
[1724701902447,0.02481035,63451.0,63450.0,0.7889264]
[1724701902604,0.014,63451.0,63450.0,1.1861344]
[1724701902823,0.04950632,63463.0,63450.0,1.0285304]
[1724701903026,0.15617801,63462.0,63461.0,0.157577]
[1724701903649,0.15617801,63462.0,63459.0,0.315161]
[1724701903851,0.15617801,63462.0,63460.0,0.157578]
[1724701904247,0.15617801,63462.0,63461.0,0.157577]
[1724701904440,0.15617801,63462.0,63459.0,0.315161]
[1724701904671,0.15617801,63462.0,63452.0,0.157598]
[1724701904872,0.157586,63458.0,63453.0,0.157595]
[1724701905071,0.157586,63458.0,63454.0,0.157593]
[1724701905072,0.15617801,63457.0,63454.0,0.157593]
[1724701905675,0.15617801,63457.0,63455.0,0.157591]
[1724701905871,0.15617801,63457.0,63450.0,0.0009064]
[1724701906112,0.472804,63451.0,63450.0,0.0009064]
[1724701906313,0.39957901,63451.0,63450.0,0.0009064]
[1724701906899,0.71478201,63451.0,63450.0,0.0009064]
[1724701908134,0.72878201,63451.0,63450.0,0.0009064]
[1724701908338,0.72578201,63451.0,63450.0,0.0009064]
[1724701908861,0.72378201,63451.0,63450.0,0.0009064]
[1724701909064,0.72978201,63451.0,63450.0,0.0009064]
[1724701909451,1.04498501,63451.0,63450.0,0.0009064]
[1724701910439,1.03598501,63451.0,63450.0,0.0009064]
[1724701910866,1.04798501,63451.0,63450.0,0.0009064]
[1724701911103,1.03598501,63451.0,63450.0,0.0009064]
[1724701911615,1.04198501,63451.0,63450.0,0.0009064]
[1724701911941,1.05298501,63451.0,63450.0,0.0009064]
[1724701912137,1.36818801,63451.0,63450.0,0.0009064]
[1724701912583,1.35718801,63451.0,63450.0,0.0009064]
[1724701912785,1.36618801,63451.0,63450.0,0.0009064]
[1724701912989,1.05098501,63451.0,63450.0,0.0009064]
[1724701913601,1.03898501,63451.0,63450.0,0.0009064]
[1724701914044,1.05098501,63451.0,63450.0,0.0009064]
[1724701914611,1.04198501,63451.0,63450.0,0.0009064]
[1724701914760,1.03898501,63451.0,63450.0,0.0009064]
[1724701915183,1.04098501,63451.0,63450.0,0.0009064]
[1724701915581,1.04898501,63451.0,63450.0,0.0009064]
[1724701916185,1.04098501,63451.0,63450.0,0.0009064]
[1724701916386,1.04798501,63451.0,63450.0,0.0009064]
[1724701916845,1.03698501,63451.0,63450.0,0.0009064]
[1724701917005,1.04698501,63451.0,63450.0,0.0009064]
[1724701917204,1.03698501,63451.0,63450.0,0.0009064]
[1724701917638,1.05098501,63451.0,63450.0,0.0009064]
[1724701917841,1.02998501,63451.0,63450.0,0.0009064]
[1724701918048,1.35618801,63451.0,63450.0,0.0009064]
[1724701918218,1.36718801,63451.0,63450.0,0.0009064]
[1724701918436,1.35618801,63451.0,63450.0,0.0009064]
[1724701918823,1.04898501,63451.0,63450.0,0.0009064]
[1724701919273,0.17517801,63451.0,63450.0,0.6313224]
[1724701919492,0.17517801,63451.0,63450.0,0.4737184]
[1724701920214,0.019,63451.0,63450.0,0.7889264]
[1724701921074,0.000824,63457.0,63456.0,0.472768]
[1724701921301,0.15700201,63457.0,63456.0,0.157589]
[1724701921514,0.15700201,63457.0,63456.0,0.472768]
[1724701922434,0.15700201,63457.0,63456.0,0.157589]
[1724701922647,0.15700201,63457.0,63456.0,0.472768]
[1724701922878,0.16200201,63457.0,63456.0,0.472768]
[1724701923031,0.005824,63457.0,63456.0,1.165626]
[1724701923231,0.005824,63457.0,63456.0,1.246926]
[1724701923842,0.013824,63457.0,63456.0,1.246926]
[1724701924020,0.005824,63457.0,63456.0,1.246926]
[1724701924238,0.000824,63457.0,63456.0,1.81928301]
[1724701924609,0.002824,63457.0,63456.0,1.81928301]
[1724701924798,0.001824,63457.0,63456.0,1.81928301]
[1724701924965,0.000824,63457.0,63456.0,1.81928301]
[1724701925169,0.001824,63457.0,63456.0,1.81928301]
[1724701925755,0.000824,63457.0,63456.0,1.81928301]
[1724701926816,0.001824,63457.0,63456.0,1.81928301]
[1724701927228,0.002824,63457.0,63456.0,1.81928301]
[1724701929170,0.002824,63457.0,63456.0,1.81828301]
[1724701929385,0.002824,63457.0,63456.0,1.662105]
[1724701930471,0.002824,63457.0,63456.0,1.81928301]
[1724701931929,0.002824,63457.0,63456.0,2.13446201]
[1724701933953,0.002824,63457.0,63456.0,1.81928301]
[1724701935136,0.002824,63457.0,63456.0,2.13446201]
[1724701935749,0.002824,63457.0,63456.0,2.44964101]
[1724701936107,0.002824,63457.0,63456.0,2.46071929]
[1724701936834,0.001824,63457.0,63456.0,2.46071929]
[1724701937039,0.000824,63457.0,63456.0,2.46071929]
[1724701937241,0.001824,63457.0,63456.0,2.47271929]
[1724701937450,0.002824,63457.0,63456.0,2.47271929]
[1724701937669,0.001824,63457.0,63456.0,2.46071929]
[1724701937904,0.001824,63457.0,63456.0,2.47271929]
[1724701938107,0.002824,63457.0,63456.0,2.47271929]
[1724701940579,0.002824,63457.0,63456.0,3.75071929]
[1724701940780,0.002824,63457.0,63456.0,4.09457314]
[1724701941216,0.000824,63462.0,63461.0,2.193101]
[1724701941418,0.000824,63462.0,63461.0,2.46149127]
[1724701941998,0.000824,63462.0,63461.0,2.73622037]
[1724701942198,0.000824,63468.0,63467.0,1.734182]
[1724701942546,0.000824,63484.0,63483.0,0.78761]
[1724701942662,0.000824,63484.0,63483.0,1.7924271]
[1724701944117,0.000824,63484.0,63483.0,1.517698]
[1724701944554,0.000824,63484.0,63483.0,1.525698]
[1724701944753,0.001824,63484.0,63483.0,1.533698]
[1724701945582,0.001824,63484.0,63483.0,1.53967087]
[1724701950308,0.001824,63484.0,63483.0,1.22462687]
[1724701950525,0.066324,63484.0,63483.0,0.90361]
[1724701950991,0.066324,63484.0,63483.0,1.218654]
[1724701951218,0.066324,63484.0,63483.0,0.90361]
[1724701951387,0.066324,63484.0,63483.0,1.218654]
[1724701951909,0.001824,63484.0,63483.0,1.218654]
[1724701958109,0.001824,63484.0,63483.0,0.90361]
[1724701958556,0.001824,63484.0,63483.0,1.218654]
[1724701960547,0.001824,63484.0,63483.0,1.354554]
[1724701960962,0.001824,63484.0,63483.0,1.669598]
[1724701961384,0.001824,63484.0,63483.0,1.218654]
[1724701970193,0.001824,63484.0,63483.0,1.533698]
[1724701970396,0.001824,63484.0,63483.0,1.218654]
[1724701970792,0.001824,63484.0,63483.0,1.609498]
[1724701975618,0.001824,63484.0,63483.0,1.218654]
[1724701976193,0.001824,63484.0,63483.0,1.533698]
[1724701977670,0.001824,63484.0,63483.0,1.218654]
[1724701980477,0.001824,63484.0,63483.0,2.04190511]
[1724701980686,0.001824,63484.0,63483.0,2.10620511]
[1724701980886,0.001824,63484.0,63483.0,2.50337475]
[1724701981113,0.001824,63484.0,63483.0,2.72400185]
[1724701981754,0.001824,63484.0,63483.0,2.84205404]
[1724701981986,0.001824,63484.0,63483.0,2.8393341]
[1724701982458,0.001824,63484.0,63483.0,2.72128191]
[1724701982699,0.001824,63484.0,63483.0,2.83932296]
[1724701983134,0.001824,63484.0,63483.0,2.72128191]
[1724701983344,0.001824,63484.0,63483.0,3.03632591]
[1724701983570,0.001824,63484.0,63483.0,2.72128191]
[1724701983771,0.001824,63484.0,63483.0,2.71328191]
[1724701983980,0.001824,63484.0,63483.0,2.85494454]
[1724701984586,0.001824,63484.0,63483.0,2.71328191]
[1724701984902,0.000825,63492.0,63491.0,1.878227]
[1724701985109,0.000825,63492.0,63491.0,2.75525957]
[1724701985318,0.000825,63500.0,63499.0,1.247777]
[1724701985531,0.000825,63500.0,63499.0,2.77415563]
[1724701985761,0.00825,63524.0,63499.0,2.77415563]
[1724701985762,0.00825,63524.0,63509.0,1.103202]
[1724701985984,0.04988862,63517.0,63509.0,2.40833911]
[1724701986202,0.04988862,63517.0,63509.0,2.68658579]
[1724701986417,0.00824,63521.0,63509.0,2.68658579]
[1724701986591,0.00824,63521.0,63509.0,2.59227763]
[1724701986768,0.00824,63521.0,63509.0,2.50756736]
[1724701986969,0.00824,63521.0,63509.0,2.52156736]
[1724701987191,0.00824,63521.0,63509.0,2.4754747]
[1724701987602,0.00824,63521.0,63509.0,2.42836567]
[1724701987951,0.00824,63521.0,63509.0,2.47445833]
[1724701988155,0.00824,63521.0,63509.0,2.41436567]
[1724701988555,0.00824,63521.0,63509.0,2.42836567]
[1724701989419,0.00824,63521.0,63509.0,2.44236567]
[1724701989784,0.00824,63521.0,63509.0,2.41436567]
[1724701989996,0.00824,63521.0,63509.0,2.44236567]
[1724701990981,0.08704,63515.0,63509.0,1.98305067]
[1724701991187,0.00824,63515.0,63509.0,1.95505067]
[1724701991592,0.00824,63515.0,63509.0,1.96905067]
[1724701991795,0.00824,63515.0,63509.0,1.95505067]
[1724701992199,0.00824,63515.0,63509.0,1.98305067]
[1724701992406,0.00824,63515.0,63509.0,1.96905067]
[1724701993663,0.00824,63515.0,63509.0,1.98305067]
[1724701994241,0.00824,63515.0,63509.0,2.06025067]
[1724701994993,0.00824,63515.0,63509.0,2.04625067]
[1724701995237,0.00824,63515.0,63509.0,2.06025067]
[1724701995657,0.00824,63515.0,63509.0,2.04625067]
[1724701995833,0.00824,63515.0,63509.0,2.37516567]
[1724701997709,0.00824,63515.0,63509.0,3.63016567]
[1724701999155,0.00824,63515.0,63509.0,3.23805067]
[1724701999359,0.078,63513.0,63509.0,2.96332157]
[1724701999563,0.00824,63515.0,63509.0,2.96332157]
[1724702001434,0.00824,63515.0,63509.0,3.23805067]
[1724702004176,0.00824,63515.0,63509.0,3.31835067]
[1724702004379,0.00824,63515.0,63509.0,3.69726567]
[1724702004528,0.0777,63514.0,63509.0,3.23805067]
[1724702005220,0.0777,63514.0,63509.0,2.80614356]
[1724702005627,0.0777,63514.0,63509.0,2.80714356]
[1724702005960,0.0777,63514.0,63509.0,2.79314356]
[1724702006166,0.0777,63514.0,63509.0,2.77914356]
[1724702006422,0.0777,63514.0,63509.0,2.79314356]
[1724702006605,0.0777,63514.0,63509.0,2.80714356]
[1724702007980,0.0777,63514.0,63509.0,2.79314356]
[1724702008317,0.0777,63514.0,63509.0,2.93532157]
[1724702008470,0.0777,63514.0,63509.0,2.94932157]
[1724702009266,0.0777,63514.0,63509.0,2.96332157]
[1724702010659,0.0777,63514.0,63509.0,2.80614356]
[1724702011069,0.00824,63515.0,63509.0,3.04582157]
[1724702011459,0.00824,63515.0,63509.0,3.10912157]
[1724702011799,0.00824,63515.0,63509.0,3.42403657]
[1724702012205,0.0757,63514.0,63509.0,2.96232157]
[1724702015761,0.0757,63514.0,63509.0,2.96332157]
[1724702016945,0.0757,63514.0,63509.0,2.80614356]
[1724702017774,0.00063548,63510.0,63509.0,2.80614356]
[1724702019380,0.06553548,63510.0,63509.0,2.49122856]
[1724702019562,0.06553548,63510.0,63509.0,2.17631356]
[1724702019563,0.14603548,63510.0,63509.0,2.17631356]
[1724702019768,0.14603548,63510.0,63509.0,2.07631356]
[1724702020316,0.14603548,63510.0,63509.0,2.06231356]
[1724702020530,0.14603548,63510.0,63509.0,2.07531356]
[1724702020704,0.14603548,63510.0,63509.0,2.06131356]
[1724702021106,0.14603548,63510.0,63509.0,2.07531356]
[1724702021325,0.14603548,63510.0,63509.0,2.17531356]
[1724702021444,0.14603548,63510.0,63509.0,0.92031356]
[1724702021934,0.14603548,63510.0,63509.0,0.499372]
[1724702022128,0.14603548,63510.0,63509.0,0.027]
[1724702022298,0.77457949,63510.0,63509.0,0.027]
[1724702022495,1.11249049,63510.0,63509.0,0.027]
[1724702022740,1.42740149,63510.0,63509.0,0.027]
[1724702023306,1.42740149,63510.0,63509.0,0.014]
[1724702023507,1.42740149,63510.0,63505.0,0.0009064]
[1724702023508,0.787325,63506.0,63505.0,0.0009064]
[1724702023709,1.39043211,63506.0,63505.0,0.0009064]
[1724702024209,1.39043211,63506.0,63497.0,0.04963164]
[1724702024210,0.787425,63498.0,63497.0,0.04963164]
[1724702024376,0.77613301,63498.0,63497.0,0.04963164]
[1724702024579,0.1492,63496.0,63492.0,0.157499]
[1724702024810,0.30537801,63495.0,63494.0,0.157495]
[1724702025641,0.0812,63494.0,63492.0,0.157497]
[1724702025862,0.23737801,63494.0,63493.0,0.157497]
[1724702026019,0.0812,63494.0,63493.0,0.787487]
[1724702026814,0.0812,63494.0,63493.0,0.78805462]
[1724702027423,0.0812,63494.0,63493.0,0.47305962]
[1724702027625,0.1421,63493.0,63492.0,0.15806762]
[1724702028041,0.1421,63493.0,63492.0,0.1575]
[1724702028677,0.1421,63491.0,63489.0,0.00056762]
[1724702028885,0.0803,63488.0,63485.0,0.04972013]
[1724702029141,0.0803,63486.0,63483.0,0.315043]
[1724702029373,0.1421,63484.0,63483.0,0.472565]
[1724702029598,0.1421,63484.0,63483.0,0.572565]
[1724702030417,0.1421,63484.0,63483.0,0.887609]
[1724702031667,0.1421,63484.0,63483.0,0.88817662]
[1724702032081,0.1421,63484.0,63483.0,0.887609]
[1724702032290,0.1421,63484.0,63483.0,0.889609]
[1724702036707,0.1421,63484.0,63483.0,0.89017662]
[1724702036865,0.1421,63484.0,63483.0,0.89108302]
[1724702038376,0.1421,63484.0,63483.0,1.20612702]
[1724702038695,0.0803,63484.0,63483.0,1.20612702]
[1724702040138,0.0628,63487.0,63483.0,1.20612702]
[1724702040139,0.0628,63487.0,63486.0,1.10317262]
[1724702041021,0.16778327,63491.0,63490.0,0.00037834]
[1724702041232,0.10268327,63491.0,63490.0,0.47308262]
[1724702041429,0.10268327,63491.0,63490.0,1.10310262]
[1724702041846,0.31494,63505.0,63484.0,0.40074786]
[1724702041847,0.0819,63500.0,63493.0,0.00056762]
[1724702041997,0.1065805,63500.0,63499.0,0.472447]
[1724702042199,0.1065805,63500.0,63499.0,0.787412]
[1724702042200,0.0819,63500.0,63499.0,0.787412]
[1724702042440,0.0819,63500.0,63499.0,1.102377]
[1724702042604,0.15617801,63509.0,63508.0,0.47238]
[1724702042605,0.18085572,63509.0,63508.0,0.47238]
[1724702042806,0.18085572,63509.0,63508.0,0.7873]
[1724702043008,0.32145572,63509.0,63508.0,0.7873]
[1724702043626,0.32145572,63509.0,63508.0,0.47238]
[1724702044026,0.29677801,63509.0,63508.0,0.47238]
[1724702044442,0.32145392,63509.0,63508.0,0.47238]
[1724702044857,0.32145392,63509.0,63507.0,0.157462]
[1724702045128,0.32445392,63509.0,63505.0,0.314934]
[1724702045336,0.32445392,63509.0,63508.0,0.15746]
[1724702045572,0.32145392,63509.0,63508.0,0.47238]
[1724702045765,0.32145392,63509.0,63508.0,0.47338]
[1724702045976,0.76915001,63509.0,63508.0,0.001]
[1724702046918,0.76915001,63509.0,63503.0,0.157471]
[1724702046919,0.157463,63507.0,63503.0,0.157471]
[1724702047124,0.15617801,63506.0,63503.0,0.157471]
[1724702047302,0.0797,63505.0,63503.0,0.157471]
[1724702047508,0.15617801,63504.0,63503.0,0.157471]
[1724702047708,0.15617801,63504.0,63498.0,0.314968]
[1724702047909,0.0797,63502.0,63496.0,0.04969488]
[1724702048107,0.15617801,63501.0,63500.0,0.157478]
[1724702049537,0.15617801,63501.0,63497.0,0.314974]
[1724702049962,0.15617801,63501.0,63500.0,0.15748]
[1724702050299,0.15817801,63501.0,63500.0,0.15748]
[1724702050500,0.15817801,63501.0,63496.0,0.00056762]
[1724702050501,0.0797,63500.0,63496.0,0.00056762]
[1724702050694,0.0797,63498.0,63496.0,0.00056762]
[1724702050900,0.15617801,63497.0,63496.0,0.00056762]
[1724702051452,0.15617801,63497.0,63496.0,0.15805762]
[1724702052089,0.15617801,63497.0,63496.0,0.15749]
[1724702052700,0.18085751,63497.0,63496.0,0.47303762]
[1724702052901,0.0246795,63497.0,63496.0,0.78745]
[1724702053751,0.0246795,63497.0,63496.0,0.78801762]
[1724702053949,0.0246795,63497.0,63496.0,0.78945]
[1724702054149,0.0246795,63497.0,63496.0,0.79001762]
[1724702054505,0.0246795,63497.0,63496.0,0.47503762]
[1724702054723,0.0797,63498.0,63497.0,0.472462]
[1724702054926,0.23587801,63498.0,63497.0,0.472462]
[1724702056213,0.26055702,63498.0,63497.0,0.472462]
[1724702056409,0.26055702,63498.0,63497.0,0.787437]
[1724702056836,0.26055702,63498.0,63497.0,0.788437]
[1724702058301,0.23587801,63498.0,63497.0,0.788437]
[1724702058504,0.23587801,63498.0,63497.0,0.473462]
[1724702059815,0.26055706,63498.0,63497.0,0.473462]
[1724702060602,0.2603675,63498.0,63497.0,0.473462]
[1724702061192,0.0647,63504.0,63503.0,0.157472]
[1724702061391,0.22087801,63504.0,63503.0,0.157472]
[1724702062104,0.15617801,63504.0,63503.0,0.157472]
[1724702062931,0.18085571,63504.0,63503.0,0.157472]
[1724702063457,0.18585571,63504.0,63503.0,0.158472]
[1724702063680,0.18585571,63504.0,63503.0,0.001]
[1724702063681,0.26225571,63504.0,63503.0,0.001]
[1724702063862,0.79936571,63504.0,63503.0,0.002]
[1724702064081,1.11430571,63504.0,63503.0,0.002]
[1724702064216,1.45224571,63504.0,63503.0,0.002]
[1724702065728,1.49905527,63504.0,63503.0,0.002]
[1724702065935,1.45224571,63504.0,63503.0,0.002]
[1724702066085,1.54586483,63504.0,63503.0,0.002]
[1724702066288,1.54086483,63504.0,63503.0,0.001]
[1724702066468,0.61767,63496.0,63495.0,0.00018928]
[1724702066674,0.77384801,63496.0,63495.0,0.00018928]
[1724702067242,0.79852964,63496.0,63495.0,0.00018928]
[1724702067651,1.11350964,63496.0,63495.0,0.00018928]
[1724702067825,0.237595,63494.0,63493.0,0.00109678]
[1724702068028,0.39377301,63494.0,63493.0,0.00109678]